Workbook

Sheet Dashboard
M3: 2020
M4: ABRIL | R4: Empresa - Sector | S4: Empresa - Sector
A5: Acumulado a: | B5: =M4 -> ABRIL | E5: Datos acumulados | G5: Cuota Negocio / Total ASEMPLEO | J5: =empresa_ccaa!L5 -> iEMPRESA | L5: ¿▲"sin" mi Empresa? | S5: p.p.
A6: Total | B6: Facturación, € | D6: (a) | E6: =J5 -> iEMPRESA | I6: Cuota de Facturación | J6: ∆ | L6: (b) | M6: ∆ (a-b) | S6: Puntos porcentuales
B7: 2019 | C7: 2020 | D7: % i.a. | E7: =B7 -> 2019 | F7: =C7 -> 2020 | G7: % i.a. | H7: =E7 -> 2019 | I7: =F7 -> 2020 | J7: Dif.P.P. | L7: % i.a. | M7: Dif.P.P. | R7: Dif. Ritmo | S7: Importancia Relativa | V7: Empresa
A8: Nacional | B8: =empresa_ccaa!F12 -> 1277637817 | C8: =empresa_ccaa!G12 -> 1148608610 | D8: =((C8/B8)-1) -> -0.1009904411 | E8: =empresa_ccaa!K12 -> 0 | F8: =empresa_ccaa!L12 -> 0 | G8: =IF(E8>0,((F8/E8)-1),"n.a.") -> n.a. | H8: =E8/B8 -> 0 | I8: =F8/C8 -> 0 | J8: =(I8-H8)*100 -> 0 | L8: =((C8-F8)/(B8-E8))-1 -> -0.1009904411 | M8: =(D8-L8)*100 -> 0 | R8: =IF(G8="n.a.","n.a.",(G8-D8)*100) -> n.a. | S8: =empresa_ccaa!M12-empresa_ccaa!H12 ->  | U8: criterio_rank | V8: peso | W8: Comunidad | X8: % i.a. | Y8: Total_Regional
A9: ANDALUCIA | B9: =empresa_ccaa!F13 -> 104777541.2 | C9: =empresa_ccaa!G13 -> 104818275.1 | D9: =((C9/B9)-1) -> 0.0003887660327 | E9: =empresa_ccaa!K13 -> 0 | F9: =empresa_ccaa!L13 -> 0 | G9: n.a. | H9: =E9/B9 -> 0 | I9: =F9/C9 -> 0 | J9: =(I9-H9)*100 -> 0 | L9: =((C9-F9)/(B9-E9))-1 -> 0.0003887660327 | M9: 0 | R9: =IF(G9="n.a.","n.a.",(G9-D9)*100) -> n.a. | S9: =empresa_ccaa!M13-empresa_ccaa!H13 ->  | U9: =IF(V9=$V$27,1,0) -> 1 | V9: =I9 -> 0 | W9: =A9 -> ANDALUCIA | X9: =G9 -> n.a. | Y9: =D9 -> 0.0003887660327
A10: ARAGON | B10: =empresa_ccaa!F14 -> 63318988.81 | C10: =empresa_ccaa!G14 -> 54091175.42 | D10: =((C10/B10)-1) -> -0.1457353246 | E10: =empresa_ccaa!K14 -> 0 | F10: =empresa_ccaa!L14 -> 0 | G10: n.a. | H10: 0 | I10: 0 | J10: 0 | L10: -0.1457353246 | M10: 0 | R10: n.a. | S10: =empresa_ccaa!M14-empresa_ccaa!H14 ->  | U10: =IF(V10=$V$27,1,0) -> 1 | V10: 0 | W10: ARAGON | X10: =G10 -> n.a. | Y10: =D10 -> -0.1457353246
A11: ASTURIAS | B11: =empresa_ccaa!F15 -> 21408824.96 | C11: =empresa_ccaa!G15 -> 19706909.2 | D11: -0.0794959911 | E11: =empresa_ccaa!K15 -> 0 | F11: =empresa_ccaa!L15 -> 0 | G11: n.a. | H11: 0 | I11: 0 | J11: 0 | L11: -0.0794959911 | M11: 0 | R11: n.a. | S11: =empresa_ccaa!M15-empresa_ccaa!H15 ->  | U11: 1 | V11: 0 | W11: ASTURIAS | X11: n.a. | Y11: -0.0794959911
A12: BALEARES | B12: =empresa_ccaa!F16 -> 4492980.037 | C12: =empresa_ccaa!G16 -> 2926723.166 | D12: -0.3486008971 | E12: =empresa_ccaa!K16 -> 0 | F12: =empresa_ccaa!L16 -> 0 | G12: =IF(E12>0,((F12/E12)-1),"n.a.") -> n.a. | H12: 0 | I12: 0 | J12: 0 | L12: -0.3486008971 | M12: 0 | R12: n.a. | S12: =empresa_ccaa!M16-empresa_ccaa!H16 ->  | U12: 1 | V12: 0 | W12: BALEARES | X12: n.a. | Y12: -0.3486008971
A13: CANARIAS | B13: =empresa_ccaa!F17 -> 30756687.53 | C13: =empresa_ccaa!G17 -> 23197317.17 | D13: -0.2457797303 | E13: =empresa_ccaa!K17 -> 0 | F13: =empresa_ccaa!L17 -> 0 | G13: n.a. | H13: 0 | I13: 0 | J13: 0 | L13: -0.2457797303 | M13: 0 | R13: n.a. | S13: =empresa_ccaa!M17-empresa_ccaa!H17 ->  | U13: 1 | V13: 0 | W13: CANARIAS | X13: n.a. | Y13: -0.2457797303
A14: CANTABRIA | B14: =empresa_ccaa!F18 -> 33989925.05 | C14: =empresa_ccaa!G18 -> 31251849.51 | D14: -0.08055550382 | E14: =empresa_ccaa!K18 -> 0 | F14: =empresa_ccaa!L18 -> 0 | G14: n.a. | H14: 0 | I14: 0 | J14: 0 | L14: -0.08055550382 | M14: 0 | R14: n.a. | S14: =empresa_ccaa!M18-empresa_ccaa!H18 ->  | U14: 1 | V14: 0 | W14: CANTABRIA | X14: n.a. | Y14: -0.08055550382
A15: CASTILLA-LA MANCHA | B15: =empresa_ccaa!F19 -> 53369874.85 | C15: =empresa_ccaa!G19 -> 56166562.2 | D15: 0.05240198443 | E15: =empresa_ccaa!K19 -> 0 | F15: =empresa_ccaa!L19 -> 0 | G15: n.a. | H15: 0 | I15: 0 | J15: 0 | L15: 0.05240198443 | M15: 0 | R15: n.a. | S15: =empresa_ccaa!M19-empresa_ccaa!H19 ->  | U15: 1 | V15: 0 | W15: CASTILLA-LA MANCHA | X15: n.a. | Y15: 0.05240198443
A16: CASTILLA Y LEÓN | B16: =empresa_ccaa!F20 -> 78340915.97 | C16: =empresa_ccaa!G20 -> 72292647.54 | D16: -0.07720446401 | E16: =empresa_ccaa!K20 -> 0 | F16: =empresa_ccaa!L20 -> 0 | G16: n.a. | H16: 0 | I16: 0 | J16: =(I16-H16)*100 -> 0 | L16: -0.07720446401 | M16: 0 | R16: n.a. | S16: =empresa_ccaa!M20-empresa_ccaa!H20 ->  | U16: 1 | V16: 0 | W16: CASTILLA Y LEÓN | X16: n.a. | Y16: -0.07720446401
A17: CATALUÑA | B17: =empresa_ccaa!F21 -> 311856947 | C17: =empresa_ccaa!G21 -> 258136831.2 | D17: -0.1722588395 | E17: =empresa_ccaa!K21 -> 0 | F17: =empresa_ccaa!L21 -> 0 | G17: =IF(E17>0,((F17/E17)-1),"n.a.") -> n.a. | H17: 0 | I17: 0 | J17: =(I17-H17)*100 -> 0 | L17: -0.1722588395 | M17: 0 | R17: n.a. | S17: =empresa_ccaa!M21-empresa_ccaa!H21 ->  | U17: =IF(V17=$V$27,1,0) -> 1 | V17: =I17 -> 0 | W17: CATALUÑA | X17: n.a. | Y17: -0.1722588395
A18: COMUNIDAD VALENCIANA | B18: =empresa_ccaa!F22 -> 103495814.5 | C18: =empresa_ccaa!G22 -> 90510714.07 | D18: -0.1254649812 | E18: =empresa_ccaa!K22 -> 0 | F18: =empresa_ccaa!L22 -> 0 | G18: n.a. | H18: 0 | I18: 0 | J18: =(I18-H18)*100 -> 0 | L18: -0.1254649812 | M18: 0 | R18: n.a. | S18: =empresa_ccaa!M22-empresa_ccaa!H22 ->  | U18: 1 | V18: 0 | W18: COMUNIDAD VALENCIANA | X18: n.a. | Y18: -0.1254649812
A19: EXTREMADURA | B19: =empresa_ccaa!F23 -> 7732105.924 | C19: =empresa_ccaa!G23 -> 8451228.594 | D19: 0.09300476185 | E19: =empresa_ccaa!K23 -> 0 | F19: =empresa_ccaa!L23 -> 0 | G19: n.a. | H19: 0 | I19: 0 | J19: 0 | L19: 0.09300476185 | M19: 0 | R19: n.a. | S19: =empresa_ccaa!M23-empresa_ccaa!H23 ->  | U19: 1 | V19: 0 | W19: EXTREMADURA | X19: n.a. | Y19: 0.09300476185
A20: GALICIA | B20: =empresa_ccaa!F24 -> 66806638.68 | C20: =empresa_ccaa!G24 -> 66225111.64 | D20: -0.008704629518 | E20: =empresa_ccaa!K24 -> 0 | F20: =empresa_ccaa!L24 -> 0 | G20: n.a. | H20: 0 | I20: 0 | J20: 0 | L20: -0.008704629518 | M20: 0 | R20: n.a. | S20: =empresa_ccaa!M24-empresa_ccaa!H24 ->  | U20: 1 | V20: 0 | W20: GALICIA | X20: n.a. | Y20: -0.008704629518
A21: MADRID | B21: =empresa_ccaa!F25 -> 205693191.3 | C21: =empresa_ccaa!G25 -> 186902675 | D21: -0.09135215517 | E21: =empresa_ccaa!K25 -> 0 | F21: =empresa_ccaa!L25 -> 0 | G21: n.a. | H21: 0 | I21: 0 | J21: 0 | L21: -0.09135215517 | M21: 0 | R21: n.a. | S21: =empresa_ccaa!M25-empresa_ccaa!H25 ->  | U21: 1 | V21: 0 | W21: MADRID | X21: n.a. | Y21: -0.09135215517
A22: MURCIA | B22: =empresa_ccaa!F26 -> 70809969.86 | C22: =empresa_ccaa!G26 -> 77371479.26 | D22: 0.09266363783 | E22: =empresa_ccaa!K26 -> 0 | F22: =empresa_ccaa!L26 -> 0 | G22: n.a. | H22: 0 | I22: 0 | J22: 0 | L22: 0.09266363783 | M22: 0 | R22: n.a. | S22: =empresa_ccaa!M26-empresa_ccaa!H26 ->  | U22: 1 | V22: 0 | W22: MURCIA | X22: n.a. | Y22: 0.09266363783
A23: NAVARRA | B23: =empresa_ccaa!F27 -> 46749107.08 | C23: =empresa_ccaa!G27 -> 38808347.38 | D23: -0.1698590666 | E23: =empresa_ccaa!K27 -> 0 | F23: =empresa_ccaa!L27 -> 0 | G23: n.a. | H23: 0 | I23: 0 | J23: 0 | L23: -0.1698590666 | M23: 0 | R23: n.a. | S23: =empresa_ccaa!M27-empresa_ccaa!H27 ->  | U23: 1 | V23: 0 | W23: NAVARRA | X23: n.a. | Y23: -0.1698590666
A24: PAIS VASCO | B24: =empresa_ccaa!F28 -> 62413140.05 | C24: =empresa_ccaa!G28 -> 47537442.74 | D24: -0.2383423954 | E24: =empresa_ccaa!K28 -> 0 | F24: =empresa_ccaa!L28 -> 0 | G24: n.a. | H24: 0 | I24: 0 | J24: 0 | L24: -0.2383423954 | M24: 0 | R24: n.a. | S24: =empresa_ccaa!M28-empresa_ccaa!H28 ->  | U24: 1 | V24: 0 | W24: PAIS VASCO | X24: n.a. | Y24: -0.2383423954
A25: RIOJA (LA) | B25: =empresa_ccaa!F29 -> 11625163.88 | C25: =empresa_ccaa!G29 -> 10213320.69 | D25: -0.1214471641 | E25: =empresa_ccaa!K29 -> 0 | F25: =empresa_ccaa!L29 -> 0 | G25: n.a. | H25: 0 | I25: 0 | J25: 0 | L25: -0.1214471641 | M25: 0 | R25: n.a. | S25: =empresa_ccaa!M29-empresa_ccaa!H29 ->  | U25: 1 | V25: 0 | W25: RIOJA (LA) | X25: n.a. | Y25: -0.1214471641
U26: codifico=1 | V26: máximo
U27: =DMAX(U8:W25,V8,U8:U25)*1 -> 0 | V27: =MAX(V9:V25) -> 0
J28: =I6 -> Cuota de Facturación | T28: geo data | U28: =VLOOKUP(1,U8:Y25,3,0) -> ANDALUCIA
M29: =I7 -> 2020 | U29: el dato a buscar debe estar en la primera columna.
B30: % i.a. | F30: % i.a. | U30: =VLOOKUP(1,U8:Y25,4,0)*1 -> 
B31: =C7 -> 2020 | F31: =B31 -> 2020 | U31: =VLOOKUP(1,U8:Y25,5,0)*1 -> 0.0003887660327
B32: Total | F32: Empresa | J32: =J5 -> iEMPRESA
M33: Ámbito
A34: Ámbito | B34: =F34 -> Nacional | F34: =J34 -> Nacional | J34: Nacional | M34: Nacional
J38: =U28 -> ANDALUCIA | M38: CCAA
M39: Líder para la
B40: % i.a. | F40: % i.a. | M40: Empresa
B41: =B31 -> 2020 | F41: =B41 -> 2020
B42: Total | F42: Empresa | J42: =J32 -> iEMPRESA
A44: Ámbito | B44: =F44 -> ANDALUCIA | F44: =J44 -> ANDALUCIA | J44: =J38 -> ANDALUCIA
A48: Fuente: Cifras consolidadas del sector. Valores absolutos 2015-2020 y cifras de evolución de 2016 a la fecha. ASEMPLEO ©.
A49: Nota de Confidencialidad: Este informe comparativo contiene datos redondeados que son ficticeos y serán reemplazados por los que la Empresa introduzca en "empresa_ccaa".

Sheet Ayuda y Version (hidden)
G2: Versión de plantilla: | H2: 2.5

Sheet pBlock (hidden)
B4: Block Test
B5: Info1 | C5: Info2

Sheet pAccel0 (hidden)
A1: Gauge Configuration | O1: Gauge Configuration | Z1: Gauge Configuration | AK1: Gauge Configuration
F2: Decal | T2: Decal | AE2: Decal | AP2: Decal
A3: Title: | B3: =Dashboard!#REF! ->  | F3: 0 | O3: Title: | P3: =pAccel0!B3 ->  | T3: 0 | Z3: Title: | AA3: Empresa | AE3: 0 | AK3: Title: | AL3: CCAA | AP3: 0
A4: Real Value: | B4: =Dashboard!#REF! ->  | O4: Real Value: | P4: =Dashboard!I8 -> 0 | Z4: Real Value: | AA4: =Dashboard!I8 -> 0 | AK4: Real Value: | AL4: =Dashboard!U27 -> 0
A6: Color bands | O6: Color bands | Z6: Color bands | AK6: Color bands
A7: Red: | B7: 2 | O7: Red: | P7: 2 | Z7: Red: | AA7: 2 | AK7: Red: | AL7: 2
A8: Yellow: | B8: 15 | O8: Yellow: | P8: 15 | Z8: Yellow: | AA8: 15 | AK8: Yellow: | AL8: 15
A9: Green: | B9: 23 | O9: Green: | P9: 23 | Z9: Green: | AA9: 23 | AK9: Green: | AL9: 23
A11: Advanced Parameters | O11: Advanced Parameters | Z11: Advanced Parameters | AK11: Advanced Parameters
B12: Value to 100% | C12: =IF(ISERROR((B4-F3/100)*B27),0,(B4-F3/100)*B27) -> 0 | P12: Value to 100% | Q12: =IF(ISERROR((P4-T3/100)*P27),0,(P4-T3/100)*P27) -> 0 | AA12: Value to 100% | AB12: =IF(ISERROR((AA4-AE3/100)*AA27),0,(AA4-AE3/100)*AA27) -> 0 | AL12: Value to 100% | AM12: =IF(ISERROR((AL4-AP3/100)*AL27),0,(AL4-AP3/100)*AL27) -> 0
B13: Relative value | C13: =IF(C12>100%,102%,IF(C12<0%,-2%,C12))*1.506-0.253 -> -0.253 | P13: Relative value | Q13: =IF(Q12>100%,102%,IF(Q12<0%,-2%,Q12))*1.506-0.253 -> -0.253 | AA13: Relative value | AB13: =IF(AB12>100%,102%,IF(AB12<0%,-2%,AB12))*1.506-0.253 -> -0.253 | AL13: Relative value | AM13: =IF(AM12>100%,102%,IF(AM12<0%,-2%,AM12))*1.506-0.253 -> -0.253
A15: Angle | C15: =C13*PI() -> -0.7948229414 | O15: Angle | Q15: =Q13*PI() -> -0.7948229414 | Z15: Angle | AB15: =AB13*PI() -> -0.7948229414 | AK15: Angle | AM15: =AM13*PI() -> -0.7948229414
A16: x | B16: 0 | C16: =-COS(C15) -> -0.7004111508 | O16: x | P16: 0 | Q16: =-COS(Q15) -> -0.7004111508 | Z16: x | AA16: 0 | AB16: =-COS(AB15) -> -0.7004111508 | AK16: x | AL16: 0 | AM16: =-COS(AM15) -> -0.7004111508
A17: y | B17: 0 | C17: =SIN(C15) -> -0.7137396023 | O17: y | P17: 0 | Q17: =SIN(Q15) -> -0.7137396023 | Z17: y | AA17: 0 | AB17: =SIN(AB15) -> -0.7137396023 | AK17: y | AL17: 0 | AM17: =SIN(AM15) -> -0.7137396023
D19: Value | E19: Label | R19: Value | S19: Label | AC19: Value | AD19: Label | AN19: Value | AO19: Label
C20: 70 | D20: 10 | E20: =B26+F3 -> 4 | Q20: 70 | R20: 10 | S20: =P26+T3 -> 4 | AB20: 70 | AC20: 10 | AD20: =AA26+AE3 -> 4 | AM20: 70 | AN20: 10 | AO20: =AL26+AP3 -> 4
C21: =B7*$C$20/$B$25 -> 3.5 | D21: 10 | E21: =E20+$B$26 -> 8 | Q21: =P7*$C$20/$B$25 -> 3.5 | R21: 10 | S21: =S20+$B$26 -> 8 | AB21: =AA7*$AB$20/$AA$25 -> 3.5 | AC21: 10 | AD21: =AD20+$AA$26 -> 8 | AM21: =AL7*$AM$20/$AL$25 -> 3.5 | AN21: 10 | AO21: =AO20+$AL$26 -> 8
C22: =B8*$C$20/$B$25 -> 26.25 | D22: 10 | E22: 12 | Q22: =P8*$C$20/$B$25 -> 26.25 | R22: 10 | S22: 12 | AB22: =AA8*$AB$20/$AA$25 -> 26.25 | AC22: 10 | AD22: 12 | AM22: =AL8*$AM$20/$AL$25 -> 26.25 | AN22: 10 | AO22: =AO21+$AL$26 -> 12
C23: =B9*$C$20/$B$25 -> 40.25 | D23: 10 | E23: 16 | Q23: =P9*$C$20/$B$25 -> 40.25 | R23: 10 | S23: 16 | AB23: =AA9*$AB$20/$AA$25 -> 40.25 | AC23: 10 | AD23: 16 | AM23: 40.25 | AN23: 10 | AO23: 16
A24: White | C24: 23 | D24: 10 | E24: 20 | O24: White | Q24: 23 | R24: 10 | S24: 20 | Z24: White | AB24: 23 | AC24: 10 | AD24: 20 | AK24: White | AM24: 23 | AN24: 10 | AO24: 20
A25: Total | B25: =SUM(B7:B24) -> 40 | C25: =SUM(C21:C24) -> 93 | D25: 10 | E25: 24 | O25: Total | P25: =SUM(P7:P24) -> 40 | Q25: =SUM(Q21:Q24) -> 93 | R25: 10 | S25: 24 | Z25: Total | AA25: =SUM(AA7:AA24) -> 40 | AB25: =SUM(AB21:AB24) -> 93 | AC25: 10 | AD25: 24 | AK25: Total | AL25: =SUM(AL7:AL24) -> 40 | AM25: =SUM(AM21:AM24) -> 93 | AN25: 10 | AO25: 24
A26: Increment | B26: =B25/10 -> 4 | D26: 10 | E26: 28 | O26: Increment | P26: =P25/10 -> 4 | R26: 10 | S26: 28 | Z26: Increment | AA26: =AA25/10 -> 4 | AC26: 10 | AD26: 28 | AK26: Increment | AL26: =AL25/10 -> 4 | AN26: 10 | AO26: 28
A27: Conversion | B27: =100/B25 -> 2.5 | D27: 10 | E27: 32 | O27: Conversion | P27: =100/P25 -> 2.5 | R27: 10 | S27: 32 | Z27: Conversion | AA27: =100/AA25 -> 2.5 | AC27: 10 | AD27: 32 | AK27: Conversion | AL27: =100/AL25 -> 2.5 | AN27: 10 | AO27: 32
D28: 10 | E28: 36 | R28: 10 | S28: 36 | AC28: 10 | AD28: 36 | AN28: 10 | AO28: 36
D29: 10 | E29: 40 | R29: 10 | S29: 40 | AC29: 10 | AD29: 40 | AN29: 10 | AO29: 40
D30: 33 | E30: =F3 -> 0 | R30: 33 | S30: =T3 -> 0 | AC30: 33 | AD30: =AE3 -> 0 | AN30: 33 | AO30: =AP3 -> 0

Sheet pAccel1 (hidden)
A1: Gauge Configuration | Q1: Gauge Configuration | X1: Gauge Configuration | AE1: Gauge Configuration | AL1: Gauge Configuration | AS1: Gauge Configuration | AZ1: Gauge Configuration | BG1: Gauge Configuration
F2: Decal | V2: Decal | AC2: Decal | AJ2: Decal | AQ2: Decal | AX2: Decal | BE2: Decal | BL2: Decal
A3: Title: | B3: CPDs | F3: 100 | Q3: Title: | R3: Facturación | V3: 100 | X3: Title: | Y3: CPDs | AC3: 100 | AE3: Title: | AF3: Facturación | AJ3: 100 | AL3: Title: | AM3: Facturación | AQ3: 100 | AS3: Title: | AT3: Facturación | AX3: 100 | AZ3: Title: | BA3: Facturación | BE3: 100 | BG3: Title: | BH3: Facturación | BL3: 100
A4: Real Value: | B4: =Dashboard!#REF! ->  | C4: =Dashboard!#REF! ->  | Q4: Real Value: | R4: =Dashboard!#REF! ->  | X4: Real Value: | Y4: =Dashboard!#REF! ->  | AE4: Real Value: | AF4: =Dashboard!#REF! ->  | AL4: Real Value: | AM4: =Dashboard!D8 -> -0.1009904411 | AS4: Real Value: | AT4: =Dashboard!$G$8 -> n.a. | AZ4: Real Value: | BA4: =Dashboard!U31 -> 0.0003887660327 | BG4: Real Value: | BH4: =Dashboard!U30 -> 
A6: Color bands
A7: Red: | B7: -50
A8: Yellow: | B8: 0
A9: Green: | B9: 50
A11: Advanced Parameters | Q11: Advanced Parameters | X11: Advanced Parameters | AE11: Advanced Parameters | AL11: Advanced Parameters | AS11: Advanced Parameters | AZ11: Advanced Parameters | BG11: Advanced Parameters
B12: Value to 100% | C12: =IF(ISERROR((B4-F3/100)*B27),0,(B4-F3/100)*B27) -> 0 | E12: =IF(ISERROR((C4-F3/100)*B27),0,(C4-F3/100)*B27) -> 0 | R12: Value to 100% | S12: =IF(ISERROR((R4-V3/100)*R27),0,(R4-V3/100)*R27) -> 0 | Y12: Value to 100% | Z12: =IF(ISERROR((Y4-AC3/100)*Y27),0,(Y4-AC3/100)*Y27) -> 0 | AF12: Value to 100% | AG12: =IF(ISERROR((AF4-AJ3/100)*AF27),0,(AF4-AJ3/100)*AF27) -> 0 | AM12: Value to 100% | AN12: =IF(ISERROR((AM4-AQ3/100)*AM27),0,(AM4-AQ3/100)*AM27) -> -2.201980882 | AT12: Value to 100% | AU12: =IF(ISERROR((AT4-AX3/100)*AT27),0,(AT4-AX3/100)*AT27) -> 0 | BA12: Value to 100% | BB12: =IF(ISERROR((BA4-BE3/100)*BA27),0,(BA4-BE3/100)*BA27) -> -1.999222468 | BH12: Value to 100% | BI12: =IF(ISERROR((BH4-BL3/100)*BH27),0,(BH4-BL3/100)*BH27) -> 0
B13: Relative value | C13: =IF(B4<-100%,-100%,IF(B4>100%,100%,2*B4/1)) ->  | D13: ojo1, todo en porcentaje, por 2, y con 1 al final en lugar de 100. | E13: =IF(C4<-100%,-100%,IF(C4>100%,100%,2*C4/1)) ->  | I13: Todos los negritas tienen dato 50, en lugar de 100 para que la escala recorra menos. | R13: Relative value | S13: =IF(R4<-100%,-100%,IF(R4>100%,100%,2*R4/1)) ->  | Y13: Relative value | Z13: =IF(Y4<-100%,-100%,IF(Y4>100%,100%,2*Y4/1)) ->  | AF13: Relative value | AG13: =IF(AF4<-100%,-100%,IF(AF4>100%,100%,2*AF4/1)) ->  | AM13: Relative value | AN13: =IF(AM4<-100%,-100%,IF(AM4>100%,100%,2*AM4/1)) -> -0.2019808823 | AT13: Relative value | AU13: =IF(AT4<-100%,-100%,IF(AT4>100%,100%,2*AT4/1)) -> 1 | BA13: Relative value | BB13: =IF(BA4<-100%,-100%,IF(BA4>100%,100%,2*BA4/1)) -> 0.0007775320654 | BH13: Relative value | BI13: =IF(BH4<-100%,-100%,IF(BH4>100%,100%,2*BH4/1)) -> 
A15: Angle | C15: =C13*PI()/2 ->  | E15: =E13*PI()/2 ->  | Q15: Angle | S15: =S13*PI()/2 ->  | X15: Angle | Z15: =Z13*PI()/2 ->  | AE15: Angle | AG15: =AG13*PI()/2 ->  | AL15: Angle | AN15: =AN13*PI()/2 -> -0.317270828 | AS15: Angle | AU15: =AU13*PI()/2 -> 1.570796327 | AZ15: Angle | BB15: =BB13*PI()/2 -> 0.001221344512 | BG15: Angle | BI15: =BI13*PI()/2 -> 
A16: x | B16: 0 | C16: =SIN(C15) ->  | D16: =B16 -> 0 | E16: =SIN(E15) ->  | Q16: x | R16: 0 | S16: =SIN(S15) ->  | X16: x | Y16: 0 | Z16: =SIN(Z15) ->  | AE16: x | AF16: 0 | AG16: =SIN(AG15) ->  | AL16: x | AM16: 0 | AN16: =SIN(AN15) -> -0.3119747656 | AS16: x | AT16: 0 | AU16: =SIN(AU15) -> 1 | AZ16: x | BA16: 0 | BB16: =SIN(BB15) -> 0.001221344209 | BG16: x | BH16: 0 | BI16: =SIN(BI15) -> 
A17: y | B17: 0 | C17: =-COS(C15) ->  | D17: =B17 -> 0 | E17: =-COS(E15) ->  | Q17: y | R17: 0 | S17: =-COS(S15) ->  | X17: y | Y17: 0 | Z17: =-COS(Z15) ->  | AE17: y | AF17: 0 | AG17: =-COS(AG15) ->  | AL17: y | AM17: 0 | AN17: =-COS(AN15) -> -0.9500903881 | AS17: y | AT17: 0 | AU17: =-COS(AU15) -> -6.125742275e-17 | AZ17: y | BA17: 0 | BB17: =-COS(BB15) -> -0.9999992542 | BG17: y | BH17: 0 | BI17: =-COS(BI15) -> 
D19: Value | E19: Label
C20: 50 | D20: 0 | E20: 50
C21: =E21 -> 40 | D21: =D31/D33 -> 5 | E21: =E20+$B$26 -> 40
C22: =E22 -> 30 | D22: =D21 -> 5 | E22: =E21+$B$26 -> 30
C23: 20 | D23: =D22 -> 5 | E23: 20
A24: White | C24: 10 | D24: 5 | E24: 10 | Q24: White | X24: White | AE24: White | AL24: White | AS24: White | AZ24: White | BG24: White
A25: Total | B25: 50 | C25: 0 | D25: 5 | E25: 0 | Q25: Total | R25: 50 | X25: Total | Y25: 50 | AE25: Total | AF25: 50 | AL25: Total | AM25: 50 | AS25: Total | AT25: 50 | AZ25: Total | BA25: 50 | BG25: Total | BH25: 50
A26: Increment | B26: -10 | C26: -10 | D26: 5 | E26: -10 | Q26: Increment | R26: -10 | X26: Increment | Y26: -10 | AE26: Increment | AF26: -10 | AL26: Increment | AM26: -10 | AS26: Increment | AT26: -10 | AZ26: Increment | BA26: -10 | BG26: Increment | BH26: -10
A27: Conversion | B27: =100/B25 -> 2 | C27: -20 | D27: 5 | E27: -20 | Q27: Conversion | R27: =100/R25 -> 2 | X27: Conversion | Y27: =100/Y25 -> 2 | AE27: Conversion | AF27: =100/AF25 -> 2 | AL27: Conversion | AM27: =100/AM25 -> 2 | AS27: Conversion | AT27: =100/AT25 -> 2 | AZ27: Conversion | BA27: =100/BA25 -> 2 | BG27: Conversion | BH27: =100/BH25 -> 2
C28: -30 | D28: 5 | E28: -30
C29: -40 | D29: 5 | E29: -40
C30: -50 | D30: 5 | E30: -50
D31: 50
D33: 10
D35: =SUM(D20:D30) -> 50

Sheet empresa_ccaa
M3: =Dashboard!M3 -> 2020
M4: =Dashboard!M4 -> ABRIL
K5: Empresa | L5: =L9 -> iEMPRESA
C9: Facturación, € | F9: ASEMPLEO | G9: ASEMPLEO | K9: Empresa = | L9: iEMPRESA
C10: Dato acumulado a | E10: =M4 -> ABRIL | F10: =Dashboard!B7 -> 2019 | G10: =Dashboard!C7 -> 2020 | J10: Facturación | K10: =F10 -> 2019 | L10: =G10 -> 2020
H11: Estructura (%) | J11: Datos acumulados | M11: Estructura (%)
F12: =D167 -> 1277637817 | G12: =A167 -> 1148608610 | H12: =G12/G$12 -> 1 | I12: TOTAL | K12: =SUM(K13:K29) -> 0 | L12: =SUM(L13:L29) -> 0 | M12: =L12/L$12 -> 
F13: =D168 -> 104777541.2 | G13: =A168 -> 104818275.1 | H13: =G13/G$12 -> 0.09125673813 | I13: ANDALUCIA | M13: =L13/L$12 -> 
F14: =D169 -> 63318988.81 | G14: =A169 -> 54091175.42 | H14: =G14/G$12 -> 0.04709278248 | I14: ARAGON | M14: =L14/L$12 -> 
F15: =D170 -> 21408824.96 | G15: =A170 -> 19706909.2 | H15: 0.01715720136 | I15: ASTURIAS | M15: =L15/L$12 -> 
F16: =D171 -> 4492980.037 | G16: =A171 -> 2926723.166 | H16: 0.002548059574 | I16: BALEARES
F17: =D172 -> 30756687.53 | G17: =A172 -> 23197317.17 | H17: 0.02019601539 | I17: CANARIAS
F18: =D173 -> 33989925.05 | G18: =A173 -> 31251849.51 | H18: 0.02720844093 | I18: CANTABRIA
F19: =D174 -> 53369874.85 | G19: =A174 -> 56166562.2 | H19: 0.04889965278 | I19: CASTILLA-LA MANCHA
F20: =D175 -> 78340915.97 | G20: =A175 -> 72292647.54 | H20: 0.06293932234 | I20: CASTILLA Y LEÓN
F21: =D176 -> 311856947 | G21: =A176 -> 258136831.2 | H21: 0.2247387221 | I21: CATALUÑA | M21: =L21/L$12 -> 
F22: =D177 -> 103495814.5 | G22: =A177 -> 90510714.07 | H22: 0.0788003096 | I22: COMUNIDAD VALENCIANA
F23: =D178 -> 7732105.924 | G23: =A178 -> 8451228.594 | H23: 0.00735779666 | I23: EXTREMADURA
F24: =D179 -> 66806638.68 | G24: =A179 -> 66225111.64 | H24: 0.05765681283 | I24: GALICIA
F25: =D180 -> 205693191.3 | G25: =A180 -> 186902675 | H25: 0.162720942 | I25: MADRID
F26: =D181 -> 70809969.86 | G26: =A181 -> 77371479.26 | H26: 0.06736104762 | I26: MURCIA
F27: =D182 -> 46749107.08 | G27: =A182 -> 38808347.38 | H27: 0.03378726839 | I27: NAVARRA
F28: =D183 -> 62413140.05 | G28: =A183 -> 47537442.74 | H28: 0.04138698103 | I28: PAIS VASCO
F29: =D184 -> 11625163.88 | G29: =A184 -> 10213320.69 | H29: 0.008891906787 | I29: RIOJA (LA)
A31: Fuente: Cifras consolidadas del sector. ASEMPLEO ©.
A32: Nota de Confidencialidad: Este informe comparativo se genera con los datos propios de la Empresa.
A60: D03:
A61: MES:
A65: TOTAL
A66: ANDALUCIA
A67: ARAGON
A68: ASTURIAS
A69: BALEARES
A70: CANARIAS
A71: CANTABRIA
A72: CASTILLA-LA MANCHA
A73: CASTILLA Y LEÓN
A74: CATALUÑA
A75: COMUNIDAD VALENCIANA
A76: EXTREMADURA
A77: GALICIA
A78: MADRID
A79: MURCIA
A80: NAVARRA
A81: PAIS VASCO
A82: RIOJA (LA)
A83: Ceuta y Melilla
C162: D03: | F162: D03 : | G162: Variación Interanual (%)
A163: ACUMULADO A LA FECHA | C163: =A61 -> MES: | D163: =A163 -> ACUMULADO A LA FECHA | F163: =C163 -> MES: | G163: Tasa % i.a.
A165: Facturación | D165: Facturación | G165: Facturación
H166: check
A167: 1148608610 | C167: TOTAL | D167: 1277637817 | F167: TOTAL | G167: -0.1009904411 | H167: =A167/D167-1 -> -0.1009904411
A168: 104818275.1 | C168: ANDALUCIA | D168: 104777541.2 | F168: ANDALUCIA | G168: 0.0003887660327 | H168: =A168/D168-1 -> 0.0003887660327
A169: 54091175.42 | C169: ARAGON | D169: 63318988.81 | F169: ARAGON | G169: -0.1457353246 | H169: -0.1457353246
A170: 19706909.2 | C170: ASTURIAS | D170: 21408824.96 | F170: ASTURIAS | G170: -0.0794959911 | H170: -0.0794959911
A171: 2926723.166 | C171: BALEARES | D171: 4492980.037 | F171: BALEARES | G171: -0.3486008971 | H171: -0.3486008971
A172: 23197317.17 | C172: CANARIAS | D172: 30756687.53 | F172: CANARIAS | G172: -0.2457797303 | H172: -0.2457797303
A173: 31251849.51 | C173: CANTABRIA | D173: 33989925.05 | F173: CANTABRIA | G173: -0.08055550382 | H173: -0.08055550382
A174: 56166562.2 | C174: CASTILLA-LA MANCHA | D174: 53369874.85 | F174: CASTILLA-LA MANCHA | G174: 0.05240198443 | H174: 0.05240198443
A175: 72292647.54 | C175: CASTILLA Y LEÓN | D175: 78340915.97 | F175: CASTILLA Y LEÓN | G175: -0.07720446401 | H175: -0.07720446401
A176: 258136831.2 | C176: CATALUÑA | D176: 311856947 | F176: CATALUÑA | G176: -0.1722588395 | H176: -0.1722588395
A177: 90510714.07 | C177: COMUNIDAD VALENCIANA | D177: 103495814.5 | F177: COMUNIDAD VALENCIANA | G177: -0.1254649812 | H177: -0.1254649812
A178: 8451228.594 | C178: EXTREMADURA | D178: 7732105.924 | F178: EXTREMADURA | G178: 0.09300476185 | H178: 0.09300476185
A179: 66225111.64 | C179: GALICIA | D179: 66806638.68 | F179: GALICIA | G179: -0.008704629518 | H179: -0.008704629518
A180: 186902675 | C180: MADRID | D180: 205693191.3 | F180: MADRID | G180: -0.09135215517 | H180: -0.09135215517
A181: 77371479.26 | C181: MURCIA | D181: 70809969.86 | F181: MURCIA | G181: 0.09266363783 | H181: 0.09266363783
A182: 38808347.38 | C182: NAVARRA | D182: 46749107.08 | F182: NAVARRA | G182: -0.1698590666 | H182: -0.1698590666
A183: 47537442.74 | C183: PAIS VASCO | D183: 62413140.05 | F183: PAIS VASCO | G183: -0.2383423954 | H183: -0.2383423954
A184: 10213320.69 | C184: RIOJA (LA) | D184: 11625163.88 | F184: RIOJA (LA) | G184: -0.1214471641 | H184: =A184/D184-1 -> -0.1214471641
C185: Ceuta y Melilla | F185: Ceuta y Melilla
